[Event "Late-Titled-Tuesday-Blitz-April-02-2024"]
[Site "Chess.com"]
[Date "2024.04.02"]
[Round "7"]
[White "Korchmar_Vasiliy"]
[Black "Shahdad2007"]
[Result "0-1"]
[WhiteElo "2721"]
[BlackElo "2611"]
[TimeControl "180+1"]
[EndTime "15:16:39 PDT"]
[Termination "Shahdad2007 won on time"]

1. a3 {[%clk 0:03:00.9]} 1... a6 {[%clk 0:02:59.3]} 2. h3 {[%clk 0:02:59.2]}
2... b6 {[%clk 0:02:57.8]} 3. e4 {[%clk 0:02:57.5]} 3... Bb7 {[%clk 0:02:58.2]}
4. Nc3 {[%clk 0:02:55.8]} 4... c5 {[%clk 0:02:58]} 5. Nf3 {[%clk 0:02:52.3]}
5... e6 {[%clk 0:02:58]} 6. g4 {[%clk 0:02:43.9]} 6... Nc6 {[%clk 0:02:54.9]} 7.
Bg2 {[%clk 0:02:43.9]} 7... Qc7 {[%clk 0:02:54.9]} 8. O-O {[%clk 0:02:43.7]}
8... Bd6 {[%clk 0:02:48.7]} 9. d4 {[%clk 0:02:35.3]} 9... cxd4 {[%clk
0:02:36.4]} 10. Nxd4 {[%clk 0:02:36.2]} 10... Nxd4 {[%clk 0:02:31.8]} 11. Qxd4
{[%clk 0:02:36]} 11... Be5 {[%clk 0:02:32]} 12. Qd3 {[%clk 0:02:33.8]} 12... Ne7
{[%clk 0:02:30.3]} 13. f4 {[%clk 0:02:27.5]} 13... Bxc3 {[%clk 0:02:28.6]} 14.
bxc3 {[%clk 0:02:28.4]} 14... Rc8 {[%clk 0:02:25.6]} 15. Bd2 {[%clk 0:02:17]}
15... h5 {[%clk 0:02:24.8]} 16. g5 {[%clk 0:02:15.4]} 16... Ng6 {[%clk
0:02:24.6]} 17. f5 {[%clk 0:02:05.9]} 17... exf5 {[%clk 0:01:40.6]} 18. exf5
{[%clk 0:01:44.3]} 18... Ne5 {[%clk 0:01:39.4]} 19. Rae1 {[%clk 0:01:22.6]}
19... Bxg2 {[%clk 0:01:33.2]} 20. Kxg2 {[%clk 0:01:15.1]} 20... O-O {[%clk
0:01:32.2]} 21. Qg3 {[%clk 0:01:05.3]} 21... Qc6+ {[%clk 0:01:20.9]} 22. Kh2
{[%clk 0:01:01.1]} 22... Nc4 {[%clk 0:00:54.4]} 23. Bf4 {[%clk 0:00:58.2]} 23...
Nxa3 {[%clk 0:00:50]} 24. g6 {[%clk 0:00:57]} 24... Qxc3 {[%clk 0:00:46.4]} 25.
gxf7+ {[%clk 0:00:09.7]} 25... Rxf7 {[%clk 0:00:45.1]} 26. Re8+ {[%clk
0:00:09.9]} 26... Rf8 {[%clk 0:00:23.9]} 27. Rxf8+ {[%clk 0:00:10.3]} 27... Kxf8
{[%clk 0:00:24.5]} 28. Bd6+ {[%clk 0:00:11]} 28... Kg8 {[%clk 0:00:24.3]} 29.
Bxa3 {[%clk 0:00:11.9]} 29... Qxc2+ {[%clk 0:00:18.9]} 30. Rf2 {[%clk
0:00:11.2]} 30... Qc7 {[%clk 0:00:13.9]} 31. Bd6 {[%clk 0:00:10.7]} 31... Qc4
{[%clk 0:00:12.2]} 32. f6 {[%clk 0:00:10.5]} 32... Qf7 {[%clk 0:00:11.2]} 33.
Be5 {[%clk 0:00:08.9]} 33... g6 {[%clk 0:00:08.8]} 34. Bd4 {[%clk 0:00:07.2]}
34... Kh7 {[%clk 0:00:09]} 35. Re2 {[%clk 0:00:07.3]} 35... Re8 {[%clk
0:00:08.2]} 36. Rxe8 {[%clk 0:00:04.9]} 36... Qxe8 {[%clk 0:00:09.1]} 37. Bxb6
{[%clk 0:00:05.5]} 37... Qf7 {[%clk 0:00:07.8]} 38. Qe5 {[%clk 0:00:05.1]} 38...
d5 {[%clk 0:00:05.8]} 39. Bd4 {[%clk 0:00:04.9]} 39... a5 {[%clk 0:00:05.5]} 40.
Qb8 {[%clk 0:00:03.4]} 40... a4 {[%clk 0:00:04.5]} 41. Qa8 {[%clk 0:00:03.6]}
41... Qc7+ {[%clk 0:00:02.3]} 42. Kg2 {[%clk 0:00:04.1]} 42... Qc2+ {[%clk
0:00:02.8]} 43. Kf3 {[%clk 0:00:04.3]} 43... Qe4+ {[%clk 0:00:03.4]} 44. Kg3
{[%clk 0:00:04.2]} 44... Qxd4 {[%clk 0:00:04]} 45. Qb7+ {[%clk 0:00:04.3]} 45...
Kh6 {[%clk 0:00:04.5]} 46. Qg7+ {[%clk 0:00:01.7]} 46... Kg5 {[%clk 0:00:04.9]}
47. h4+ {[%clk 0:00:02.3]} 47... Qxh4+ {[%clk 0:00:03.9]} 48. Kf3 {[%clk
0:00:01.9]} 48... Qf4+ {[%clk 0:00:04.6]} 49. Ke2 {[%clk 0:00:02.3]} 49... Qxf6
{[%clk 0:00:05.5]} 0-1

[Event "Late-Titled-Tuesday-Blitz-April-02-2024"]
[Site "Chess.com"]
[Date "2024.04.02"]
[Round "7"]
[White "bipe137"]
[Black "Grischuk"]
[Result "0-1"]
[WhiteElo "2661"]
[BlackElo "3060"]
[TimeControl "180+1"]
[EndTime "15:16:40 PDT"]
[Termination "Grischuk won by resignation"]

1. d4 {[%clk 0:03:00.9]} 1... e6 {[%clk 0:02:58.5]} 2. c4 {[%clk 0:03:00.8]}
2... b6 {[%clk 0:02:58.6]} 3. a3 {[%clk 0:03:00.1]} 3... Bb7 {[%clk 0:02:58.4]}
4. Nc3 {[%clk 0:03:00.7]} 4... f5 {[%clk 0:02:59.1]} 5. d5 {[%clk 0:02:56.2]}
5... Nf6 {[%clk 0:02:58.8]} 6. Nf3 {[%clk 0:02:51.9]} 6... Na6 {[%clk
0:02:56.5]} 7. b4 {[%clk 0:02:47.3]} 7... Be7 {[%clk 0:02:51.3]} 8. Bb2 {[%clk
0:02:47.2]} 8... O-O {[%clk 0:02:50.4]} 9. e3 {[%clk 0:02:46.7]} 9... Ne4 {[%clk
0:02:43.4]} 10. Bd3 {[%clk 0:02:30]} 10... Bf6 {[%clk 0:02:42.4]} 11. Qc2 {[%clk
0:02:25.7]} 11... Bxc3+ {[%clk 0:02:32.9]} 12. Bxc3 {[%clk 0:02:26]} 12... Nxc3
{[%clk 0:02:32.8]} 13. Qxc3 {[%clk 0:02:26.2]} 13... Qf6 {[%clk 0:02:33]} 14.
Qxf6 {[%clk 0:02:24.3]} 14... Rxf6 {[%clk 0:02:33.9]} 15. dxe6 {[%clk
0:02:17.5]} 15... dxe6 {[%clk 0:02:28.3]} 16. Ke2 {[%clk 0:01:53.6]} 16... c5
{[%clk 0:02:23.1]} 17. Rab1 {[%clk 0:01:51.8]} 17... Rd8 {[%clk 0:02:06.7]} 18.
Rhg1 {[%clk 0:01:40.2]} 18... Bxf3+ {[%clk 0:01:58.7]} 19. gxf3 {[%clk
0:01:38.2]} 19... Rh6 {[%clk 0:01:30.5]} 20. Rg2 {[%clk 0:01:37.8]} 20... Kf7
{[%clk 0:01:29.5]} 21. Bc2 {[%clk 0:01:33.5]} 21... Kf6 {[%clk 0:01:15.5]} 22.
Ba4 {[%clk 0:01:30.4]} 22... Rh4 {[%clk 0:01:11.8]} 23. f4 {[%clk 0:01:25.8]}
23... g6 {[%clk 0:01:04.3]} 24. Bb5 {[%clk 0:01:20.6]} 24... Nc7 {[%clk
0:01:04.3]} 25. Bc6 {[%clk 0:01:20.1]} 25... Rd6 {[%clk 0:01:02.3]} 26. Bf3
{[%clk 0:01:14.7]} 26... Na6 {[%clk 0:00:52.7]} 27. Bb7 {[%clk 0:01:13.2]} 27...
Nc7 {[%clk 0:00:52.2]} 28. Bf3 {[%clk 0:01:13]} 28... e5 {[%clk 0:00:33.9]} 29.
bxc5 {[%clk 0:01:09.9]} 29... bxc5 {[%clk 0:00:34.8]} 30. Rb7 {[%clk 0:01:09.3]}
30... Rd7 {[%clk 0:00:35.2]} 31. Bc6 {[%clk 0:01:06]} 31... Re7 {[%clk
0:00:34.4]} 32. fxe5+ {[%clk 0:01:03.4]} 32... Kxe5 {[%clk 0:00:35.3]} 33. Kd3
{[%clk 0:00:51.5]} 33... Kd6 {[%clk 0:00:34.5]} 34. Bf3 {[%clk 0:00:48.7]} 34...
Ne8 {[%clk 0:00:27.8]} 35. Rb8 {[%clk 0:00:38.9]} 35... Nf6 {[%clk 0:00:27.9]}
36. Rd8+ {[%clk 0:00:36.9]} 36... Rd7 {[%clk 0:00:26]} 37. Ra8 {[%clk 0:00:34]}
37... Rc7 {[%clk 0:00:12.4]} 38. Rd8+ {[%clk 0:00:32.5]} 38... Ke7 {[%clk
0:00:12.4]} 39. Ra8 {[%clk 0:00:32.5]} 39... Nd7 {[%clk 0:00:12]} 40. Kc3 {[%clk
0:00:27.2]} 40... Nb6 {[%clk 0:00:10.8]} 41. Rh8 {[%clk 0:00:27.3]} 41... Rxc4+
{[%clk 0:00:10.5]} 42. Kb3 {[%clk 0:00:27.2]} 42... Rh4 {[%clk 0:00:11.4]} 43.
Kc3 {[%clk 0:00:20]} 43... c4 {[%clk 0:00:10]} 44. Be2 {[%clk 0:00:18.9]} 44...
Nd5+ {[%clk 0:00:08.3]} 45. Kc2 {[%clk 0:00:17.1]} 45... c3 {[%clk 0:00:08.2]}
46. Rg1 {[%clk 0:00:14.2]} 46... Rxh2 {[%clk 0:00:07.3]} 47. Rd1 {[%clk
0:00:14.2]} 47... Nxe3+ {[%clk 0:00:05.7]} 48. fxe3 {[%clk 0:00:13.2]} 48...
Rxe2+ {[%clk 0:00:06.6]} 49. Kc1 {[%clk 0:00:13.2]} 49... Kf6 {[%clk 0:00:05.2]}
50. Rd6+ {[%clk 0:00:12.4]} 50... Kg7 {[%clk 0:00:05.4]} 51. Rb8 {[%clk
0:00:10.7]} 51... c2 {[%clk 0:00:05.2]} 52. Rd1 {[%clk 0:00:03.8]} 52... cxd1=Q+
{[%clk 0:00:04.5]} 0-1

[Event "Late-Titled-Tuesday-Blitz-April-02-2024"]
[Site "Chess.com"]
[Date "2024.04.02"]
[Round "7"]
[White "Dhaydon19"]
[Black "WindWhistler11"]
[Result "0-1"]
[WhiteElo "2633"]
[BlackElo "2457"]
[TimeControl "180+1"]
[EndTime "15:16:42 PDT"]
[Termination "WindWhistler11 won on time"]

1. c4 {[%clk 0:02:35.6]} 1... Nf6 {[%clk 0:02:59]} 2. d4 {[%clk 0:02:34.6]} 2...
d6 {[%clk 0:02:59.1]} 3. Nc3 {[%clk 0:02:34.9]} 3... c6 {[%clk 0:02:59]} 4. e4
{[%clk 0:02:34.9]} 4... g6 {[%clk 0:02:56]} 5. f3 {[%clk 0:02:34.6]} 5... Bg7
{[%clk 0:02:55.7]} 6. Be3 {[%clk 0:02:34.5]} 6... a6 {[%clk 0:02:55]} 7. a4
{[%clk 0:02:31.4]} 7... b6 {[%clk 0:02:52.8]} 8. Qd2 {[%clk 0:02:28.8]} 8... h5
{[%clk 0:02:46.1]} 9. h4 {[%clk 0:02:24.4]} 9... Nbd7 {[%clk 0:02:41.1]} 10.
Nge2 {[%clk 0:02:23.9]} 10... Qc7 {[%clk 0:02:39.8]} 11. Rc1 {[%clk 0:02:15.4]}
11... e5 {[%clk 0:02:29.4]} 12. b4 {[%clk 0:02:10.7]} 12... a5 {[%clk
0:02:23.2]} 13. b5 {[%clk 0:02:09.6]} 13... c5 {[%clk 0:02:17.4]} 14. Nd5 {[%clk
0:02:01.4]} 14... Nxd5 {[%clk 0:02:16.3]} 15. cxd5 {[%clk 0:02:00.9]} 15... Qd8
{[%clk 0:02:07.5]} 16. dxe5 {[%clk 0:01:59]} 16... Nxe5 {[%clk 0:01:59.6]} 17.
Bg5 {[%clk 0:01:56.8]} 17... Bf6 {[%clk 0:01:56.3]} 18. Nc3 {[%clk 0:01:44.6]}
18... Ra7 {[%clk 0:01:45.8]} 19. Be2 {[%clk 0:01:41.6]} 19... Bxg5 {[%clk
0:01:37.1]} 20. hxg5 {[%clk 0:01:39.1]} 20... f6 {[%clk 0:01:06.3]} 21. f4
{[%clk 0:01:28.3]} 21... Ng4 {[%clk 0:01:01]} 22. Bxg4 {[%clk 0:01:24.8]} 22...
Bxg4 {[%clk 0:01:01.9]} 23. gxf6 {[%clk 0:01:23.5]} 23... Qxf6 {[%clk
0:01:01.7]} 24. g3 {[%clk 0:01:21.5]} 24... Re7 {[%clk 0:00:59.5]} 25. Qe3
{[%clk 0:01:08.2]} 25... Qd4 {[%clk 0:00:54.6]} 26. Kf2 {[%clk 0:01:02.6]} 26...
Qg7 {[%clk 0:00:51]} 27. Rce1 {[%clk 0:00:49.7]} 27... O-O {[%clk 0:00:50.6]}
28. Kg2 {[%clk 0:00:42.9]} 28... g5 {[%clk 0:00:40.5]} 29. Rhf1 {[%clk
0:00:38.7]} 29... gxf4 {[%clk 0:00:35.2]} 30. Rxf4 {[%clk 0:00:37.7]} 30... Rxf4
{[%clk 0:00:35]} 31. gxf4 {[%clk 0:00:38.3]} 31... Qd4 {[%clk 0:00:21.7]} 32. e5
{[%clk 0:00:35.1]} 32... dxe5 {[%clk 0:00:16.1]} 33. fxe5 {[%clk 0:00:34.5]}
33... Rg7 {[%clk 0:00:16.2]} 34. Kh2 {[%clk 0:00:31.3]} 34... Qb4 {[%clk
0:00:15.1]} 35. e6 {[%clk 0:00:28.6]} 35... Qb2+ {[%clk 0:00:15.3]} 36. Ne2
{[%clk 0:00:21.6]} 36... Qf6 {[%clk 0:00:12.6]} 37. Qg3 {[%clk 0:00:04.9]} 37...
Bxe2 {[%clk 0:00:11.3]} 38. e7 {[%clk 0:00:04.7]} 38... Qxe7 {[%clk 0:00:07.9]}
39. Qb8+ {[%clk 0:00:05.3]} 39... Kh7 {[%clk 0:00:07.4]} 40. Qf4 {[%clk
0:00:06.1]} 40... Rg4 {[%clk 0:00:05.9]} 41. Qf2 {[%clk 0:00:04.8]} 41... Qe5+
{[%clk 0:00:05.5]} 42. Kh1 {[%clk 0:00:05.1]} 42... Bf3+ {[%clk 0:00:05.6]} 43.
Qxf3 {[%clk 0:00:03.9]} 43... Qxe1+ {[%clk 0:00:06.1]} 44. Kh2 {[%clk
0:00:04.7]} 44... Qg1+ {[%clk 0:00:06.3]} 45. Kh3 {[%clk 0:00:05.2]} 45... Rg7
{[%clk 0:00:03.8]} 46. Qf5+ {[%clk 0:00:05.3]} 46... Qg6 {[%clk 0:00:04.7]} 47.
Qf4 {[%clk 0:00:05.7]} 47... Qg4+ {[%clk 0:00:04.5]} 48. Qxg4 {[%clk 0:00:05.4]}
48... Rxg4 {[%clk 0:00:05.4]} 49. d6 {[%clk 0:00:06.2]} 49... Rd4 {[%clk
0:00:05.8]} 50. d7 {[%clk 0:00:07]} 50... Rxd7 {[%clk 0:00:06.3]} 0-1

[Event "Late-Titled-Tuesday-Blitz-April-02-2024"]
[Site "Chess.com"]
[Date "2024.04.02"]
[Round "7"]
[White "ChessBrainiacOnTwitch"]
[Black "Indefatigable11"]
[Result "0-1"]
[WhiteElo "2802"]
[BlackElo "2255"]
[TimeControl "180+1"]
[EndTime "15:16:45 PDT"]
[Termination "Indefatigable11 won on time"]

1. e4 {[%clk 0:03:00.9]} 1... e6 {[%clk 0:03:00.1]} 2. Qe2 {[%clk 0:02:54]} 2...
Be7 {[%clk 0:02:58.9]} 3. Nf3 {[%clk 0:02:47.3]} 3... d5 {[%clk 0:02:59]} 4. d3
{[%clk 0:02:46.2]} 4... Nf6 {[%clk 0:02:58]} 5. g3 {[%clk 0:02:45.8]} 5... Nc6
{[%clk 0:02:53]} 6. Bg2 {[%clk 0:02:46]} 6... O-O {[%clk 0:02:52.6]} 7. O-O
{[%clk 0:02:46.1]} 7... dxe4 {[%clk 0:02:49.3]} 8. dxe4 {[%clk 0:02:46.3]} 8...
e5 {[%clk 0:02:49.7]} 9. c3 {[%clk 0:02:46.5]} 9... Bc5 {[%clk 0:02:49.3]} 10.
Nbd2 {[%clk 0:02:45.6]} 10... Qe7 {[%clk 0:02:48.2]} 11. a4 {[%clk 0:02:36.4]}
11... a5 {[%clk 0:02:46.5]} 12. Nc4 {[%clk 0:02:34.4]} 12... b6 {[%clk
0:02:45.5]} 13. b3 {[%clk 0:02:32.8]} 13... Ba6 {[%clk 0:02:43.2]} 14. Rd1
{[%clk 0:02:31.8]} 14... Rad8 {[%clk 0:02:42.6]} 15. Bg5 {[%clk 0:02:29.1]}
15... h6 {[%clk 0:02:40.7]} 16. Bxf6 {[%clk 0:02:23.4]} 16... Qxf6 {[%clk
0:02:40.3]} 17. Rd5 {[%clk 0:02:16.7]} 17... Rfe8 {[%clk 0:02:27.3]} 18. Rad1
{[%clk 0:02:14.6]} 18... Bxc4 {[%clk 0:02:09.4]} 19. Qxc4 {[%clk 0:02:11.3]}
19... Kf8 {[%clk 0:01:53.4]} 20. R1d3 {[%clk 0:01:18.7]} 20... Qe6 {[%clk
0:01:36.7]} 21. Qb5 {[%clk 0:01:14]} 21... Nd4 {[%clk 0:00:58.3]} 22. cxd4
{[%clk 0:00:44.8]} 22... c6 {[%clk 0:00:57.9]} 23. Rxd8 {[%clk 0:00:45.1]} 23...
cxb5 {[%clk 0:00:58]} 24. Rxe8+ {[%clk 0:00:46]} 24... Qxe8 {[%clk 0:00:53.1]}
25. dxc5 {[%clk 0:00:46.9]} 25... bxc5 {[%clk 0:00:52.7]} 26. axb5 {[%clk
0:00:44.2]} 26... Qxb5 {[%clk 0:00:51.7]} 27. Nxe5 {[%clk 0:00:41.9]} 27... f6
{[%clk 0:00:45.2]} 28. Nc4 {[%clk 0:00:26.3]} 28... a4 {[%clk 0:00:43.1]} 29.
Bf1 {[%clk 0:00:18.6]} 29... axb3 {[%clk 0:00:41.2]} 30. Rd2 {[%clk 0:00:18.8]}
30... Qb4 {[%clk 0:00:40.8]} 31. Bd3 {[%clk 0:00:16.4]} 31... Qc3 {[%clk
0:00:38.9]} 32. Kf1 {[%clk 0:00:17.1]} 32... b2 {[%clk 0:00:34.1]} 33. Ke2
{[%clk 0:00:04.8]} 33... b1=Q {[%clk 0:00:32.3]} 34. Bxb1 {[%clk 0:00:03.7]}
34... Qxc4+ {[%clk 0:00:32.6]} 35. Bd3 {[%clk 0:00:04.3]} 35... Qb4 {[%clk
0:00:32.1]} 36. Rc2 {[%clk 0:00:05.1]} 36... Ke7 {[%clk 0:00:30.1]} 37. Rc4
{[%clk 0:00:05.6]} 37... Qb2+ {[%clk 0:00:29.6]} 38. Rc2 {[%clk 0:00:06.5]}
38... Qb4 {[%clk 0:00:27.4]} 39. Rc4 {[%clk 0:00:06.7]} 39... Qa3 {[%clk
0:00:27.5]} 40. Rc2 {[%clk 0:00:07.6]} 40... Kd6 {[%clk 0:00:27]} 41. Rc4 {[%clk
0:00:08.3]} 41... g5 {[%clk 0:00:24.5]} 42. f4 {[%clk 0:00:08.4]} 42... Qb2+
{[%clk 0:00:22.3]} 43. Rc2 {[%clk 0:00:08.7]} 43... Qd4 {[%clk 0:00:21.4]} 44.
Rd2 {[%clk 0:00:08.6]} 44... Qg1 {[%clk 0:00:20.1]} 45. Kf3 {[%clk 0:00:07.3]}
45... Qe1 {[%clk 0:00:16.6]} 46. Re2 {[%clk 0:00:04.9]} 46... Qd1 {[%clk
0:00:16.8]} 47. Ke3 {[%clk 0:00:03.9]} 47... gxf4+ {[%clk 0:00:14.6]} 48. gxf4
{[%clk 0:00:04.8]} 48... Qg1+ {[%clk 0:00:14.3]} 49. Kd2 {[%clk 0:00:04.7]}
49... Qd4 {[%clk 0:00:12.1]} 50. e5+ {[%clk 0:00:04.4]} 50... fxe5 {[%clk
0:00:12]} 51. fxe5+ {[%clk 0:00:04.5]} 51... Ke6 {[%clk 0:00:12.5]} 52. Re4
{[%clk 0:00:05.4]} 52... Qd5 {[%clk 0:00:11.4]} 53. Kc2 {[%clk 0:00:05.5]} 53...
Ke7 {[%clk 0:00:10.2]} 54. Re1 {[%clk 0:00:03.4]} 54... c4 {[%clk 0:00:09]} 55.
Bf1 {[%clk 0:00:03.9]} 55... Qd4 {[%clk 0:00:08.3]} 56. e6 {[%clk 0:00:03.3]}
56... Qf2+ {[%clk 0:00:08.1]} 57. Kd1 {[%clk 0:00:02.5]} 57... c3 {[%clk
0:00:08.4]} 58. Be2 {[%clk 0:00:02.9]} 58... Qe3 {[%clk 0:00:07.7]} 59. Kc2
{[%clk 0:00:01.9]} 59... Qd2+ {[%clk 0:00:07.9]} 60. Kb3 {[%clk 0:00:01.1]}
60... c2 {[%clk 0:00:08.4]} 0-1

[Event "Late-Titled-Tuesday-Blitz-April-02-2024"]
[Site "Chess.com"]
[Date "2024.04.02"]
[Round "7"]
[White "newauto"]
[Black "maurovargas01"]
[Result "0-1"]
[WhiteElo "2193"]
[BlackElo "1889"]
[TimeControl "180+1"]
[EndTime "15:16:45 PDT"]
[Termination "maurovargas01 won by checkmate"]

1. d4 {[%clk 0:03:00.9]} 1... Nf6 {[%clk 0:02:58.9]} 2. Nf3 {[%clk 0:02:58.8]}
2... e6 {[%clk 0:02:58.1]} 3. Bg5 {[%clk 0:02:58.9]} 3... Be7 {[%clk 0:02:57.6]}
4. e3 {[%clk 0:02:58.8]} 4... h6 {[%clk 0:02:56.6]} 5. Bh4 {[%clk 0:02:58.5]}
5... g5 {[%clk 0:02:56.9]} 6. Bg3 {[%clk 0:02:58.6]} 6... d6 {[%clk 0:02:55.2]}
7. Nbd2 {[%clk 0:02:58.8]} 7... Rg8 {[%clk 0:02:33.1]} 8. Bd3 {[%clk 0:02:57]}
8... h5 {[%clk 0:02:32.1]} 9. h4 {[%clk 0:02:56.5]} 9... g4 {[%clk 0:02:31.2]}
10. Ng5 {[%clk 0:02:56.8]} 10... Nd5 {[%clk 0:02:20.7]} 11. c3 {[%clk
0:02:40.6]} 11... Bxg5 {[%clk 0:02:18.9]} 12. hxg5 {[%clk 0:02:41.5]} 12... Qxg5
{[%clk 0:02:18.6]} 13. Qc2 {[%clk 0:02:31.6]} 13... Nxe3 {[%clk 0:02:13.3]} 14.
Qa4+ {[%clk 0:02:18]} 14... Bd7 {[%clk 0:02:07.8]} 15. Qb3 {[%clk 0:02:16.5]}
15... Nc6 {[%clk 0:01:58.1]} 16. Ke2 {[%clk 0:02:11.9]} 16... Nxg2 {[%clk
0:01:52.8]} 17. Rag1 {[%clk 0:02:10.9]} 17... Nf4+ {[%clk 0:01:45.2]} 18. Bxf4
{[%clk 0:02:10.5]} 18... Qxf4 {[%clk 0:01:45.2]} 19. Rxh5 {[%clk 0:02:05.2]}
19... O-O-O {[%clk 0:01:37.9]} 20. Rb5 {[%clk 0:01:43.9]} 20... b6 {[%clk
0:01:15.6]} 21. d5 {[%clk 0:01:24.7]} 21... Ne5 {[%clk 0:00:56.7]} 22. Rb4
{[%clk 0:01:23.1]} 22... Qh2 {[%clk 0:00:31.4]} 23. Rg3 {[%clk 0:01:18.5]} 23...
Nxd3 {[%clk 0:00:23.6]} 24. Rxd3 {[%clk 0:01:13.2]} 24... g3 {[%clk 0:00:21.9]}
25. Qa3 {[%clk 0:00:44]} 25... Kb8 {[%clk 0:00:20.3]} 26. dxe6 {[%clk
0:00:30.3]} 26... Qxf2+ {[%clk 0:00:19.4]} 27. Kd1 {[%clk 0:00:30.1]} 27... Bxe6
{[%clk 0:00:17.6]} 28. Nf3 {[%clk 0:00:30]} 28... Qf1+ {[%clk 0:00:15.8]} 29.
Kc2 {[%clk 0:00:29]} 29... Bf5 {[%clk 0:00:15.5]} 30. c4 {[%clk 0:00:28]} 30...
Bxd3+ {[%clk 0:00:13.8]} 31. Qxd3 {[%clk 0:00:28.9]} 31... Qxd3+ {[%clk
0:00:12.4]} 32. Kxd3 {[%clk 0:00:28.9]} 32... g2 {[%clk 0:00:12.8]} 33. Ng1
{[%clk 0:00:29.3]} 33... Rg3+ {[%clk 0:00:11.1]} 34. Ke2 {[%clk 0:00:28.5]}
34... Re8+ {[%clk 0:00:10.8]} 35. Kf2 {[%clk 0:00:29]} 35... Rg6 {[%clk
0:00:10.2]} 36. a4 {[%clk 0:00:29.1]} 36... Ree6 {[%clk 0:00:09.4]} 37. a5
{[%clk 0:00:29.3]} 37... Ref6+ {[%clk 0:00:09.6]} 38. Ke2 {[%clk 0:00:28.4]}
38... Kc8 {[%clk 0:00:09.3]} 39. axb6 {[%clk 0:00:27.9]} 39... axb6 {[%clk
0:00:08.3]} 40. Ra4 {[%clk 0:00:27.1]} 40... Kd7 {[%clk 0:00:08.1]} 41. Ra1
{[%clk 0:00:27.1]} 41... Re6+ {[%clk 0:00:06.7]} 42. Kf2 {[%clk 0:00:26.9]}
42... Ref6+ {[%clk 0:00:07]} 43. Nf3 {[%clk 0:00:27.4]} 43... g1=Q+ {[%clk
0:00:04.3]} 44. Rxg1 {[%clk 0:00:26.1]} 44... Rxg1 {[%clk 0:00:04.7]} 45. Kxg1
{[%clk 0:00:26.3]} 45... Rxf3 {[%clk 0:00:05]} 46. Kg2 {[%clk 0:00:25.5]} 46...
Rb3 {[%clk 0:00:05.9]} 47. Kf2 {[%clk 0:00:26]} 47... Rxb2+ {[%clk 0:00:06.8]}
48. Ke3 {[%clk 0:00:26.9]} 48... Rb4 {[%clk 0:00:07.1]} 49. Kd4 {[%clk
0:00:27.8]} 49... c5+ {[%clk 0:00:07.3]} 50. Kd5 {[%clk 0:00:28]} 50... b5
{[%clk 0:00:06.9]} 51. cxb5 {[%clk 0:00:28]} 51... Rxb5 {[%clk 0:00:07.3]} 52.
Kc4 {[%clk 0:00:28.2]} 52... Rb1 {[%clk 0:00:08.2]} 53. Kd3 {[%clk 0:00:29]}
53... Rb4 {[%clk 0:00:08.1]} 54. Kc2 {[%clk 0:00:29.9]} 54... f5 {[%clk
0:00:08.4]} 55. Kc3 {[%clk 0:00:30.8]} 55... Rd4 {[%clk 0:00:08.6]} 56. Kc2
{[%clk 0:00:30.4]} 56... f4 {[%clk 0:00:09.5]} 57. Kc3 {[%clk 0:00:31.3]} 57...
f3 {[%clk 0:00:10.1]} 58. Kc2 {[%clk 0:00:32.2]} 58... f2 {[%clk 0:00:10.7]} 59.
Kc3 {[%clk 0:00:33.1]} 59... f1=Q {[%clk 0:00:10.8]} 60. Kc2 {[%clk 0:00:34]}
60... Qf3 {[%clk 0:00:10.8]} 61. Kc1 {[%clk 0:00:33.7]} 61... Rg4 {[%clk
0:00:11.1]} 62. Kd2 {[%clk 0:00:33.9]} 62... Rg2+ {[%clk 0:00:11.4]} 63. Ke1
{[%clk 0:00:34.4]} 63... Qf1+ {[%clk 0:00:12.3]} 64. Kxf1 {[%clk 0:00:34.2]}
64... Rg5 {[%clk 0:00:12.9]} 65. Kf2 {[%clk 0:00:34.6]} 65... Re5 {[%clk
0:00:13.8]} 66. Kf3 {[%clk 0:00:35.5]} 66... c4 {[%clk 0:00:10.8]} 67. Kf4
{[%clk 0:00:36.4]} 67... Ke6 {[%clk 0:00:11.7]} 68. Kf3 {[%clk 0:00:37.3]} 68...
c3 {[%clk 0:00:11.6]} 69. Kf4 {[%clk 0:00:38.2]} 69... c2 {[%clk 0:00:12]} 70.
Kf3 {[%clk 0:00:39.1]} 70... c1=Q {[%clk 0:00:11.9]} 71. Kg4 {[%clk 0:00:39.3]}
71... Qc4+ {[%clk 0:00:12.2]} 72. Kf3 {[%clk 0:00:40.2]} 72... Rd5 {[%clk
0:00:12.4]} 73. Kf2 {[%clk 0:00:41.1]} 73... Rd3 {[%clk 0:00:12.4]} 74. Ke2
{[%clk 0:00:41.4]} 74... Qc2+ {[%clk 0:00:12.4]} 75. Ke1 {[%clk 0:00:42.3]}
75... Rd1# {[%clk 0:00:12.8]} 0-1